Cogmind - Beta 15 @@@ ROGUE MODE // 2025.06.30 @ 00:25:08 Player: Udabudha Result: Destroyed by G-50 Soldier with Heavy Laser Performance ------------- Evolutions (5) 2500 Regions Visited (7) 1400 Robots Destroyed (23) 115 Value Destroyed (1308) 1308 Prototype IDs (2) 40 Alien Tech Used (0) 0 Bonus (1500) 1500 TOTAL SCORE: 6863 Bonus ------- Entered Garrisons 200 Entered DSFs 500 Registered with UFD 300 Met Optimus in HQ 500 Cogmind --------- Core Integrity 0/1000 Matter 278/300 Energy 109/170 System Corruption 1% Temperature Cool (9) Movement Walking (260) Ox2 Location -5/DSF Parts ------- > --- POWER (1) -------- Light Antimatter Reactor > --- PROPULSION (5) --- Carbon-fiber Leg > --- UTILITY (8) ------ Advanced Heat Sink Advanced Heat Sink Advanced Heat Sink Enhanced Optical Array A0-MCA's Component Scanner Dynamic Insulation System > --- WEAPON (3) ------- HERF Cannon Heavy Plasma Cannon Companion Sword > --- INVENTORY (5) ---- Light Antimatter Reactor Improved Heavy Armor Plating HERF Cannon DRS Beacon (Ready) Peak State ------------ > --- POWER ------------ Light Antimatter Reactor > --- PROPULSION ------- Improved Treads Carbon-fiber Leg Carbon-fiber Leg Carbon-fiber Leg Flexi-carbon Leg > --- UTILITY ---------- Advanced Heat Sink Advanced Heat Sink Advanced Heat Sink Advanced Heat Sink Medium Storage Unit Enhanced Optical Array A0-MCA's Component Scanner Dynamic Insulation System > --- WEAPON ----------- Heavy Plasma Cannon KE Penetrator Companion Sword > --- INVENTORY -------- Light Deuterium Engine Improved Deuterium Engine Light Angular Momentum Engine Light Antimatter Reactor Armored Medium Treads Armored Medium Treads Improved Coolant Injector Improved Heavy Armor Plating DRS Beacon [Rating: 84] Favorites ----------- Power Ion Engine Engine Ion Engine Power Core Micro Fission Core Reactor Light Antimatter Reactor Propulsion Aluminum Leg Treads Improved Treads Leg Aluminum Leg Utility Medium Storage Unit Device Advanced Heat Sink Storage Medium Storage Unit Processor A0-MCA's Component Scanner Protection Improved Medium Armor Plating Weapon Companion Sword Energy Gun EM Pulse Gun Energy Cannon Heavy Ion Cannon Ballistic Gun KE Penetrator Ballistic Cannon Magnetic Acceleration Cannon Slashing Weapon Companion Sword Build | -11 -10 -10 -7 -5 -5 -5 -5 ------- Run | Yrd Mat Sub Scr Fac Gar Fac DSF Slots Evolved 10 | . . . . 10 . . . Power . | . . . . . . . . Propulsion 3 | . . . . 3 . . . Utility 6 | . . . . 6 . . . Weapon 1 | . . . . 1 . . . Parts Attached 62 | 5 . 1 12 4 26 . 14 Power 14 | 1 . . 4 . 5 . 4 Engine 9 | 1 . . 3 . 3 . 2 Core 3 | . . . 1 . 2 . . Reactor 2 | . . . . . . . 2 Propulsion 22 | 2 . . 5 1 10 . 4 Treads 3 | . . . . . 3 . . Leg 19 | 2 . . 5 1 7 . 4 Wheel . | . . . . . . . . Hover . | . . . . . . . . Flight . | . . . . . . . . Utility 15 | 1 . 1 . 3 6 . 4 Device 10 | . . . . 2 5 . 3 Storage 2 | 1 . 1 . . . . . Processor 2 | . . . . 1 . . 1 Hackware . | . . . . . . . . Protection 1 | . . . . . 1 . . Artifact . | . . . . . . . . Weapon 11 | 1 . . 3 . 5 . 2 Energy Gun 4 | 1 . . 2 . 1 . . Energy Cannon 3 | . . . . . 2 . 1 Ballistic Gun 2 | . . . . . 1 . 1 Ballistic Cannon 1 | . . . . . 1 . . Launcher . | . . . . . . . . Special Weapon . | . . . . . . . . Impact Weapon . | . . . . . . . . Slashing Weapon 1 | . . . 1 . . . . Piercing Weapon . | . . . . . . . . Special Melee Weapon . | . . . . . . . . Unidentified Prototypes 1 | . . . 1 . . . . Parts Lost 43 | . . . 3 . 26 . 14 Power 5 | . . . 1 . 3 . 1 Propulsion 20 | . . . 2 . 11 . 7 Utility 9 | . . . . . 5 . 4 Weapon 9 | . . . . . 7 . 2 Highest Loss Streak 11 | . . . 3 . 11 . 7 To Critical Strikes . | . . . . . . . . Average Backups 8 | 4 7 8 8 4 8 9 7 Power 1 | . 1 1 1 2 4 4 2 Propulsion 3 | 2 4 4 4 1 . 2 1 Utility 1 | . . . 1 . 2 2 2 Weapon 1 | 1 2 2 1 . 1 1 . Tool/Special . | . . . . . . . . Unused Backups 12 | . . . 5 . 1 . 6 Power 2 | . . . . . . . 2 Propulsion 5 | . . . 3 . . . 2 Utility 2 | . . . . . . . 2 Weapon 3 | . . . 2 . 1 . . Tool/Special . | . . . . . . . . Average Slot Usage (%) 78 | . 71 83 86 78 61 82 78 Engine 9 | . 14 14 13 5 2 . 2 Treads 1 | . . . . . 2 5 4 Leg 22 | . 28 28 27 28 12 17 13 Device 4 | . . . . 10 7 17 17 Storage 19 | . 14 26 28 11 8 5 4 Processor 2 | . . . . 4 5 5 10 Energy Gun 6 | . 14 14 8 5 1 . . Energy Cannon 2 | . . . . 3 5 11 6 Slashing Weapon 5 | . . . 7 5 5 5 5 Peak Build Rating 84 | 5 5 6 25 50 64 64 84 Average Rating 26 | 3 5 5 11 47 48 64 65 On Entrance 27 | . 5 5 6 23 50 64 64 Naked Turns . | . . . . . . . . Heaviest Build 49 | 12 12 22 29 42 49 49 49 Greatest Support 70 | 20 20 20 38 49 70 45 65 Greatest Overweight (x) 10 | . . 1 9 . 10 1 2 Average Overweight (x) . | . . . 1 . . 1 . Largest Inventory Capacity 10 | 8 8 10 10 10 10 10 10 Average Capacity 9 | 6 8 9 10 10 10 10 9 Most Carried 10 | 7 8 8 10 9 10 10 10 Average Carried 8 | 4 7 7 9 5 9 10 8 Final Capacity 10 | 8 8 10 10 10 10 10 5 Final Carried 10 | 7 8 8 10 7 10 10 5 Class Distribution -------------------- 71% | Mutant 18% | Scavenger-Mutant 9% | Scavenger-Scrapper Dominant Class ---------------- Mutant | -10/Materials Mutant | -10/Subcaves Mutant | -7/Scraptown Scavenger-Scrapper | -5/Factory Mutant | -5/Garrison Mutant | -5/Factory Scavenger-Mutant | -5/DSF Resources | -11 -10 -10 -7 -5 -5 -5 -5 ----------- Run | Yrd Mat Sub Scr Fac Gar Fac DSF Matter Collected 1070 | 182 . 78 125 . 528 . 157 Remotely . | . . . . . . . . Salvage Created 1450 | . . . 199 . 962 . 289 Parts 68 | . . . 7 . 41 . 20 Haulers Intercepted . | . . . . . . . . Recyclers Shooed . | . . . . . . . . Parts Field Recycled . | . . . . . . . . Retrieved Matter . | . . . . . . . . Parts Self-Destructed 11 | . . 11 . . . . . Prevented . | . . . . . . . . Kills | -11 -10 -10 -7 -5 -5 -5 -5 ------- Run | Yrd Mat Sub Scr Fac Gar Fac DSF Combat Hostiles Destroyed 23 | . . . 3 . 16 . 4 Melee 2 | . . . . . 2 . . Guns 6 | . . . 2 . 3 . 1 Cannons 14 | . . . . . 11 . 3 Classes Destroyed 8 | . . . 2 . 4 . 2 Grunt 11 | . . . . . 9 . 2 Brawler 1 | . . . . . . . 1 Sentry 2 | . . . . . 2 . . Hunter 4 | . . . . . 4 . . Heavy 1 | . . . . . . . 1 Behemoth 1 | . . . . . 1 . . Ranger 1 | . . . 1 . . . . Scrapper 2 | . . . 2 . . . . Best Kill Streak 6 | . . . 1 . 6 . 1 Combat Bots Only 6 | . . . 1 . 6 . 1 Max Kills in Single Turn 1 | . . . 1 . 1 . 1 Gunslinging . | . . . . . . . . Exploded . | . . . . . . . . Melee 1 | . . . . . 1 . . Uniques/NPCs Destroyed . | . . . . . . . . Combat | -11 -10 -10 -7 -5 -5 -5 -5 -------- Run | Yrd Mat Sub Scr Fac Gar Fac DSF Hostile Shots Fired 477 | . . . 61 9 313 . 94 Missed 119 | . . . 17 5 70 . 27 Hits 358 | . . . 44 4 243 . 67 Melee 2 | . . . . . . . 2 Projectile 356 | . . . 44 4 243 . 65 Critical Strikes 11 | . . . 3 . 4 . 4 Damage Taken 6834 | . . . 807 72 4222 . 1733 Core 1186 | . . . 176 . 791 . 219 Absorbed by Shields 128 | . . . . . 128 . . Regen/Repaired (Parts) 36 | . . . . . 36 . . Core Remaining (%) 64 | 100 . . 29 . . . . Volleys Fired 135 | . . . 20 . 84 . 31 Largest 2 | . . . 1 . 2 . 2 Hottest 178 | . . . 100 . 178 . 178 Shots Fired 207 | . . . 18 . 131 . 58 Gun 97 | . . . 18 . 56 . 23 Cannon 110 | . . . . . 75 . 35 Launcher . | . . . . . . . . Special . | . . . . . . . . Kinetic 80 | . . . . . 57 . 23 Thermal 124 | . . . 18 . 74 . 32 Explosive . | . . . . . . . . Electromagnetic 3 | . . . . . . . 3 Robot Hit Streak 13 | . . . 13 . 8 . 7 Robot Miss Streak 5 | . . . 1 . 4 . 5 Penetration Max 1 | . . . . . . . 1 Secondary Targets 1 | . . . . . 1 . . Max Gunslinging Chain 1 | . . . . . 1 . . Shots Hit Robots 139 | . . . 17 . 89 . 33 Core Hits 61 | . . . 4 . 44 . 13 Critical Kills 1 | . . . . . 1 . . Critical Parts Destroyed 1 | . . . . . 1 . . Critical Strikes 8 | . . . 4 . 4 . . Burn 5 | . . . 4 . 1 . . Destroy 2 | . . . . . 2 . . Blast 1 | . . . . . 1 . . Melee Attacks 4 | . . . . . 4 . . Impact . | . . . . . . . . Slashing 4 | . . . . . 4 . . Piercing . | . . . . . . . . Sneak Attacks . | . . . . . . . . Combat Hostiles . | . . . . . . . . Follow-up Attacks . | . . . . . . . . Damage Inflicted 3959 | . . . 438 . 2373 . 1148 Guns 1611 | . . . 438 . 700 . 473 Cannons 2212 | . . . . . 1537 . 675 Explosions . | . . . . . . . . Melee 136 | . . . . . 136 . . Ramming . | . . . . . . . . Kinetic 1368 | . . . . . 895 . 473 Thermal 2341 | . . . 438 . 1342 . 561 Explosive . | . . . . . . . . Electromagnetic 114 | . . . . . . . 114 Impact . | . . . . . . . . Slashing 136 | . . . . . 136 . . Piercing . | . . . . . . . . Highest Corruption 1 | . . . 1 . . . 1 Average Corruption 1 | . . . 1 . . . 1 Corruption Purged . | . . . . . . . . Corruption Blocked . | . . . . . . . . Effects 4 | . . . 2 . . . 2 Message Errors 2 | . . . 1 . . . 1 Matter Fused 1 | . . . . . . . 1 Parts Rejected 1 | . . . 1 . . . . Overload Shots . | . . . . . . . . Overflow Damage 17 | . . . . . 17 . . Projectiles 17 | . . . . . 17 . . Explosions . | . . . . . . . . Melee . | . . . . . . . . Knockbacks 4 | . . . . . 4 . . Impact . | . . . . . . . . Kinetic 4 | . . . . . 4 . . Secondary . | . . . . . . . . Self-Inflicted Damage . | . . . . . . . . Shots . | . . . . . . . . Rammed . | . . . . . . . . Targets Rammed . | . . . . . . . . Kicked . | . . . . . . . . Crushed . | . . . . . . . . Highest Temperature 584 | . . . 584 . 559 . . Average Temperature 216 | . . . 225 . 203 . . Received Heat Transfer 1687 | . . . 277 . 852 . 558 Effects 15 | . . . 8 . 7 . . Shutdowns 2 | . . . 2 . . . . Energy Bleed 3 | . . . 1 . 2 . . Interference 3 | . . . 1 . 2 . . Matter Decay 1 | . . . . . 1 . . Short Circuit 1 | . . . . . 1 . . Damage (major) 2 | . . . 1 . 1 . . Damage (core) 3 | . . . 3 . . . . Siege Activations . | . . . . . . . . Martial Activations . | . . . . . . . . Shielding Activations . | . . . . . . . . Robots Disrupted . | . . . . . . . . Combat Hostiles . | . . . . . . . . Robots Corrupted . | . . . . . . . . Combat Hostiles . | . . . . . . . . Parts Fried . | . . . . . . . . Impact Corruptions . | . . . . . . . . Robots Melted 1 | . . . 1 . . . . Combat Hostiles 1 | . . . 1 . . . . Parts Melted 4 | . . . 1 . 3 . . Heat Transferred 3734 | . . . 1042 . 1831 . 861 Parts Sabotaged . | . . . . . . . . Parts Stolen . | . . . . . . . . Parts Stripped . | . . . . . . . . Power Chain Reactions . | . . . . . . . . Alert | -11 -10 -10 -7 -5 -5 -5 -5 ------- Run | Yrd Mat Sub Scr Fac Gar Fac DSF Maximum Alert Level 1 | . . . . . 1 . . Low Security (%) 96 | 100 100 . . 100 93 100 100 Level 1 3 | . . . . . 6 . . Level 2 . | . . . . . . . . Level 3 . | . . . . . . . . Level 4 . | . . . . . . . . Level 5 . | . . . . . . . . High Security . | . . . . . . . . Max Security . | . . . . . . . . Peak Influence 221 | . . . . 15 221 92 77 Initial 92 | . . . . . 2 92 67 Average 76 | . . . . 1 107 92 58 Influence Increases 578 | . . . . 39 434 5 100 Destroy 0b10 Robot/C 400 | . . . . . 320 . 80 Destroy Leader 60 | . . . . . 40 . 20 Successful Hack 29 | . . . . 24 . 5 . Anti-Garrison Action 50 | . . . . . 50 . . Destroy Structure 9 | . . . . . 9 . . Partial Spotted 15 | . . . . 15 . . . Lose Combat Pursuer 15 | . . . . . 15 . . Influence Decreases 551 | . . . . 35 262 84 170 Entered New Map 116 | . . . . . 2 84 30 Time Decay 35 | . . . . 35 . . . Lost Part 400 | . . . . . 260 . 140 Squads Dispatched 2 | . . . . 1 . . 1 Investigation 1 | . . . . 1 . . . Extermination . | . . . . . . . . Reinforcement 1 | . . . . . . . 1 Assault . | . . . . . . . . Garrison . | . . . . . . . . Intercept . | . . . . . . . . Searches Triggered . | . . . . . . . . Construction Impeded . | . . . . . . . . Haulers Reinforced . | . . . . . . . . Active Scanning Responses . | . . . . . . . . Cargo Convoy Interrupts . | . . . . . . . . Stealth | -11 -10 -10 -7 -5 -5 -5 -5 --------- Run | Yrd Mat Sub Scr Fac Gar Fac DSF Distress Signals . | . . . . . . . . Communications Jammed . | . . . . . . . . Distress Signals . | . . . . . . . . Times Spotted 39 | . . . 14 2 16 . 7 Peak Tracking Total 8 | . . . 8 2 6 . 4 Tactical Retreats 1 | . . . . . 1 . . Traps | -11 -10 -10 -7 -5 -5 -5 -5 ------- Run | Yrd Mat Sub Scr Fac Gar Fac DSF Traps Triggered 1 | . . . . . 1 . . Indirectly . | . . . . . . . . Trap Hack Attempts . | . . . . . . . . Triggered . | . . . . . . . . Disarmed . | . . . . . . . . Reprogrammed . | . . . . . . . . Reused . | . . . . . . . . Traps Extracted . | . . . . . . . . Installed . | . . . . . . . . Triggered . | . . . . . . . . Machines | -11 -10 -10 -7 -5 -5 -5 -5 ---------- Run | Yrd Mat Sub Scr Fac Gar Fac DSF Machines Disabled 1 | . . . 1 . . . . Max in Single Turn 1 | . . . 1 . . . . Machines Repaired . | . . . . . . . . Machines Dismantled . | . . . . . . . . Machines Sabotaged . | . . . . . . . . Overloaded Fab Kills . | . . . . . . . . Hacking | -11 -10 -10 -7 -5 -5 -5 -5 --------- Run | Yrd Mat Sub Scr Fac Gar Fac DSF Machines Accessed 13 | . . . 9 2 1 1 . Terminals 3 | . . . . 1 1 1 . Fabricators . | . . . . . . . . Repair Stations . | . . . . . . . . Recycling Units . | . . . . . . . . Scanalyzers . | . . . . . . . . Garrison Access 1 | . . . . 1 . . . Total Hacks 71 | . . . 62 4 3 2 . Successful 66 | . . . 62 3 . 1 . Failed 5 | . . . . 1 3 1 . Catastrophic 1 | . . . . . 1 . . Database Lockouts . | . . . . . . . . Manual . | . . . . . . . . Terminals 8 | . . . . 3 3 2 . Fabricators . | . . . . . . . . Repair Stations . | . . . . . . . . Recycling Units . | . . . . . . . . Scanalyzers . | . . . . . . . . Garrison Access 1 | . . . . 1 . . . Terminal Hacks 65 | . . . 62 2 . 1 . Record 63 | . . . 61 2 . . . Open Door 1 | . . . 1 . . . . Open DSF 1 | . . . . . . 1 . Fabricator Hacks . | . . . . . . . . Repair Station Hacks . | . . . . . . . . Recycling Unit Hacks . | . . . . . . . . Scanalyzer . | . . . . . . . . Garrison Access Hacks 1 | . . . . 1 . . . Unlock Access 1 | . . . . 1 . . . Unauthorized Hacks . | . . . . . . . . Terminals . | . . . . . . . . Fabricators . | . . . . . . . . Repair Stations . | . . . . . . . . Recycling Units . | . . . . . . . . Scanalyzers . | . . . . . . . . Garrison Access . | . . . . . . . . Data Cores Recovered . | . . . . . . . . Used . | . . . . . . . . Hacking Detections 3 | . . . . 1 1 1 . Full Trace Events 2 | . . . . 1 1 . . Feedback Events . | . . . . . . . . Feedback Blocked . | . . . . . . . . Robot Schematics Acquired . | . . . . . . . . Robots Built . | . . . . . . . . Authchips . | . . . . . . . . Time . | . . . . . . . . Total Robot Build Rating . | . . . . . . . . Part Schematics Acquired . | . . . . . . . . Parts Built . | . . . . . . . . Authchips . | . . . . . . . . Time . | . . . . . . . . Total Part Build Rating . | . . . . . . . . Parts Repaired . | . . . . . . . . Time . | . . . . . . . . Parts Recycled . | . . . . . . . . Recycled Matter . | . . . . . . . . Retrieved Matter . | . . . . . . . . Retrieved Components . | . . . . . . . . Parts Scanalyzed . | . . . . . . . . Part Schematics Acquired . | . . . . . . . . Parts Damaged . | . . . . . . . . Bothacking | -11 -10 -10 -7 -5 -5 -5 -5 ------------ Run | Yrd Mat Sub Scr Fac Gar Fac DSF Used RIF Installer . | . . . . . . . . Robots Hacked . | . . . . . . . . Non-combat . | . . . . . . . . Combat . | . . . . . . . . Robot Hacks Applied . | . . . . . . . . Relay Couplers Released . | . . . . . . . . Fabnet Peak Effective % . | . . . . . . . . Robots Rewired . | . . . . . . . . Allies Hacked . | . . . . . . . . Hacks Repelled . | . . . . . . . . Allies | -11 -10 -10 -7 -5 -5 -5 -5 -------- Run | Yrd Mat Sub Scr Fac Gar Fac DSF Total Allies . | . . . . . . . . Largest Group . | . . . . . . . . Highest-Rated Group . | . . . . . . . . Highest-Rated Ally . | . . . . . . . . Total Orders . | . . . . . . . . Ally Attacks . | . . . . . . . . Total Damage . | . . . . . . . . Kills . | . . . . . . . . Allies Corrupted . | . . . . . . . . Allies Melted . | . . . . . . . . Intel | -11 -10 -10 -7 -5 -5 -5 -5 ------- Run | Yrd Mat Sub Scr Fac Gar Fac DSF Active Infowar (turns) 422 | . . . . 138 73 . 211 Optics 211 | . . . . . . . 211 ECM 211 | . . . . 138 73 . . Robot Analysis Total . | . . . . . . . . Derelict Logs Recovered . | . . . . . . . . Drone Launches . | . . . . . . . . Drone Recoveries . | . . . . . . . . Exploration | -11 -10 -10 -7 -5 -5 -5 -5 ------------- Run | Yrd Mat Sub Scr Fac Gar Fac DSF Turns Passed 2837 | 67 22 236 1417 142 709 4 240 Spaces Moved 1322 | 45 18 116 736 115 225 3 64 Core 30 | 4 . . 20 . 6 . . Treads 55 | . . . . . 51 . 4 Legs 1237 | 41 18 116 716 115 168 3 60 Wheels . | . . . . . . . . Hover . | . . . . . . . . Flight . | . . . . . . . . Fastest Speed 50 | 50 120 120 100 115 113 190 120 Average Speed 169 | 113 120 178 181 115 172 190 163 Slowest Speed 550 | 120 120 190 500 115 550 190 260 Overloaded Moves . | . . . . . . . . Propulsion Burnouts . | . . . . . . . . Robots Hopped . | . . . . . . . . Potential Cave-ins . | . . . . . . . . Cave-ins Triggered . | . . . . . . . . Exploration Rate (%) 22 | 4 4 15 43 4 27 . 60 Regions Visited 7 Branch Regions 2 Pre-discovered Areas . | . . . . . . . . Known Exits Taken 2 | . . . . 1 . 1 . Unknown Exits Taken 4 | 1 1 1 1 . . . . Scrap Searched 1 | . . . 1 . . . . Spaces Dug . | . . . . . . . . Terrain Destroyed 2 | . . . . . 2 . . Melee . | . . . . . . . . Projectile 1 | . . . . . 1 . . AOE . | . . . . . . . . Terrain Rammed . | . . . . . . . . Walls Destroyed . | . . . . . . . . Machines Disabled . | . . . . . . . . Actions | -11 -10 -10 -7 -5 -5 -5 -5 --------- Run | Yrd Mat Sub Scr Fac Gar Fac DSF Total 1710 | 60 18 145 812 124 408 2 141 Wait 105 | . . 28 16 . 46 . 15 Move 1315 | 44 17 115 735 114 224 2 64 Hop . | . . . . . . . . Pick Up 59 | 11 1 1 13 4 18 . 11 Fast Attach 15 | 1 . . 2 . 9 . 3 Attach 39 | 4 . 1 5 6 14 . 9 Detach 1 | . . . 1 . . . . Swap 13 | . . . 7 . 3 . 3 Drop 19 | . . . 13 . 1 . 5 Fire 135 | . . . 20 . 84 . 31 Melee 4 | . . . . . 4 . . Ram . | . . . . . . . . Kick . | . . . . . . . . Crush . | . . . . . . . . Escape Stasis 5 | . . . . . 5 . . Rewire . | . . . . . . . . Trap . | . . . . . . . . Miscellaneous . | . . . . . . . . Route ------- -11/Scrapyard -10/Materials -10/Subcaves -7/Scraptown -5/Factory -5/Garrison -5/Factory -5/DSF History --------- Turn | Location | Event 11 | -11/Scrapyard | Discovered new exit (range 15) 68 | -11/Scrapyard | Entered Materials 69 | -10/Materials | Met a group of wandering Federalists 79 | -10/Materials | Discovered new exit (range 10) 90 | -10/Materials | Entered Subcaves 90 | -10/Subcaves | Accompanied by 2 allies 91 | -10/Subcaves | Continued accompanying wandering Federalists (5) 306 | -10/Subcaves | Build established: Mutant 325 | -10/Subcaves | Wandering Federalist uncovered a shortcut to Scraptown 326 | -10/Subcaves | Entered Scraptown 510 | -7/Scraptown | Visited Symbiants 601 | -7/Scraptown | Visited UFD Registry 614 | -7/Scraptown | Visited Cyclists 683 | -7/Scraptown | Registered with UFD as "Fluxbomber" 709 | -7/Scraptown | Entered Cyclist Reading Room 863 | -7/Scraptown | Visited Derelict Rescue Squad 878 | -7/Scraptown | Found DRS Beacon 917 | -7/Scraptown | Visited Science Testing Area 973 | -7/Scraptown | Visited Sword Containment 1167 | -7/Scraptown | Discovered new exit (range 3) 1236 | -7/Scraptown | Visited Modified Component R&D 1337 | -7/Scraptown | Visited A0-MCA Data Center 1348 | -7/Scraptown | Given a C rating by A0-MCA 1352 | -7/Scraptown | Found A0-MCA's Component Scanner 1425 | -7/Scraptown | Met Optimus 1425 | -7/Scraptown | Accepted into 0bPrime 1552 | -7/Scraptown | Civil war broke out across Scraptown 1669 | -7/Scraptown | Core integrity fell below 50% 1693 | -7/Scraptown | Lost 3 parts (1p2n) 1697 | -7/Scraptown | Lost 14 allies 1709 | -7/Scraptown | Found Scrap Suit 1743 | -7/Scraptown | Entered Factory 1743 | -5/Factory | Evolved 10 slots: Propulsion x3, Utility x6, Weapon x1 1878 | -5/Factory | Identified exit to Garrison 1885 | -5/Factory | Entered Garrison 1923 | -5/Garrison | Triggered checkpoint 2010 | -5/Garrison | Lost 4 parts (2n1u1w) 2194 | -5/Garrison | Spotted B-75 Beast 2202 | -5/Garrison | Lost 5 parts (1p2n2w) 2246 | -5/Garrison | Core integrity fell below 50% 2248 | -5/Garrison | Destroyed B-75 Beast 2276 | -5/Garrison | Lost 5 parts (2u3w) 2502 | -5/Garrison | Lost 11 parts (2p6n2u1w) 2577 | -5/Garrison | Discovered new exit (range 9) 2588 | -5/Garrison | Build established: Scavenger-Mutant 2594 | -5/Garrison | Entered Factory 2598 | -5/Factory | Identified exit to DSF 2598 | -5/Factory | Entered DSF 2636 | -5/DSF | Core integrity fell below 20% 2647 | -5/DSF | Additional patrols routed to DSF 2741 | -5/DSF | Lost 7 parts (1p3n2u1w) 2838 | -5/DSF | Destroyed by G-50 Soldier with Heavy Laser Last Messages --------------- Imp. Treads destroyed. System corrupted by crushing effect (+1). Knocked back. Slug penetrates B-60 Warrior. Carbon-fiber Leg destroyed. Slug penetrates B-60 Warrior. B-60 Warrior destroyed. KE Penetrator destroyed. |HTDRE&K4ECZ1A334E3,6WMXCHWA Adv. Heat Sink destroyed. Critical hit (Burn: +37). Acquired HERF Cannon. Med. Storage Unit destroyed. Carbon-fiber Leg destroyed. G-50 Soldier suffers critical hit (Burn). G-50 Soldier IFF system glitched. Flexi-carbon Leg destroyed. G-50 Soldier IFF system glitched. System corrupted: Matter fused (-7). [Achievement: This Is Interesting...] Map ----- +----------------------------------------------------+ | | | | | | | | | | | | | ?????????????????????????????????????????????? | | ?????????????????????????????????????????????? | | ?????????????????????????????????????????????? | | ?????????????????????????????????????????????? | | ?????????????????????????????????????????????? | | ?????????????????????????????????????????????? | | ?????????????????????########????????????????? | | ?????????????????????!! #????????????????? | | ??????????????????????! ?????????????????? | | ?????????????????????? ?????????????????? | | ?????????????????????? ??????????????????? | | ??????????????????????# #??????????????????? | | ????????????????????### ###????????????????? | | ????????????????????? !!#????????????????? | | ????????????????????? !!#????????????????? | | ?????????????????????? !!?????????????????? | | ????????????????????### ###????????????????? | | ????????????????????#]] !!#????????????????? | | ????????????????????#]]g !!#????????????????? | | ????????????????????#@*g !!#????????????????? | | ??????#################=g #######????????????? | | ??????#== ## #!!!### *###***#?? #????????? | | ??????#== #" #!!!## ##*%*#" ## #??? | | ??????# !! **=/ %" #??? | | ??????# * !!%! ! ^ #??? | | ??????#% !* ^ #??? | | ??????#!! "" #!!!##! ##!!!# ## #??? | | ????# "! %## #!!!### ###!!!# #?? #??? | | ????##### ##########?# #?#####?###????##??? | | ???????# //#???????!! !!?????????????????? | | ???????# //#??????#!! !!#????????????????? | | ???????# //#??????#!! !!#????????????????? | | ???????## ###??????### ###????????????????? | | ???????# #???????? !??????????????????? | | ???????# #??????? !??????????????????? | | ???????## ###?##???? !!?????????????????? | | ??????### ##?//#??/### ##?????????????????? | | ????###"" ##//#///### #??????????????????? | | ????""""" ?????????????????? | | ????"##"" ?????????????????? | | ??????#"""""##//# # ??????????????????? | | ??????#"""""#?###??##? ??????????????????? | | ??????####"##????????#######?????????????????? | | ?????????#"#?????????????????????????????????? | +----------------------------------------------------+ Best States ------------- Heat Dissipation 116 Energy Generation 21 Energy Capacity 290 Matter Stores 300 Matter Capacity 300 Sight Range 22 Terrain Scan Density 10 ECM Strength 1 EM Shielding 2 Armor Coverage 225 Evasion (%) 55 Recoil Reduction 2 Item Schematics ----------------- None Robot Schematics ------------------ None Fabricated ------------ Nothing Repaired ---------- Nothing Alien Tech Used ----------------- None Achievements -------------- This Is Interesting... Challenges ------------ None Game ------ Seed MicrowarpChromaticClaw Manual? 0 Play Time 00:55:09 Cumulative 17.8 hours Start 2025.06.27 @ 01:15:12 End 2025.06.30 @ 00:25:08 Sessions 3 Manual Loads 0 Difficulty Rogue Special Mode None Game No. 45 Rogue 42 Adventurer 1 Explorer 2 Win Type - Total 0 Types 0/0/0/0/0/0/0/0/0/0 Lore% 26 Gallery% 20 Achievement% 20 Wizard Run 0 Options --------- Layout 1 ASCII 0 Keyboard 0 Movement Numpad Keybinds 0 Fullscreen 1 Font 48/Smallcaps Map View 50x35 Zoom Use 0% Tactical HUD 0 Map Filters NONE Filters NONE Steam 1 RUN: 79912f37-8654-490b-9e20-3d3d22409d13